Cogmind - Beta 13 @@@ ROGUE MODE // 2024.04.03 @ 03:17:25 Player: gabr Result: Destroyed by G-47 Trooper with Particle Gun Performance ------------- Evolutions (2) 1000 Regions Visited (3) 600 Robots Destroyed (77) 385 Value Destroyed (1809) 1809 Prototype IDs (2) 40 Alien Tech Used (0) 0 Bonus (0) 0 TOTAL SCORE: 3834 Bonus ------- None Cogmind --------- Core Integrity 0/550 Matter 156/300 Energy 100/100 System Corruption 7% Temperature Cool (9) Movement Core (500) Ox9 Location -8/Materials Parts ------- > --- POWER (1) -------- (None) > --- PROPULSION (4) --- (None) > --- UTILITY (4) ------ Large Storage Unit Hardened Light Armor Plating > --- WEAPON (2) ------- Heavy Particle Gun > --- INVENTORY (15) --- Light Deuterium Engine Light Nuclear Core Heat Sink Large Storage Unit Improved Shield Generator Peak State ------------ > --- POWER ------------ Improved Ion Engine > --- PROPULSION ------- Airjet Airjet Airjet Airjet > --- UTILITY ---------- Large Storage Unit Advanced Targeting Computer > --- WEAPON ----------- Beam Rifle Heavy Assault Rifle > --- INVENTORY -------- Improved Ion Engine Light Deuterium Engine Light Deuterium Engine Aluminum Leg Heat Sink Large Storage Unit Medium Matter Pod Terrain Scanner Power Shielding Propulsion Shielding Tractor Beam Heavy EM Pulse Gun Light Assault Rifle Heavy Assault Rifle Rocket Launcher [Rating: 24] Favorites ----------- Power Improved Ion Engine Engine Improved Ion Engine Power Core Nuclear Core Propulsion Aluminum Leg Treads Light Treads Leg Aluminum Leg Wheel Wheel Hover Unit Airjet Utility Large Storage Unit Device Improved Shield Generator Storage Large Storage Unit Processor Advanced Targeting Computer Protection Light Armor Plating Weapon Small Laser Energy Gun Small Laser Ballistic Gun Heavy Assault Rifle Launcher Rocket Launcher Build | -11 -10 -9 -8 ------- Run | Yrd Mat Mat Mat Slots Evolved 4 | . . 2 2 Power . | . . . . Propulsion 2 | . . 2 . Utility 2 | . . . 2 Weapon . | . . . . Parts Attached 102 | 7 17 47 31 Power 18 | 1 4 7 6 Engine 16 | 1 4 7 4 Core 2 | . . . 2 Reactor . | . . . . Propulsion 39 | 2 6 22 9 Treads 4 | . . 4 . Leg 19 | 2 2 8 7 Wheel 11 | . 4 6 1 Hover 5 | . . 4 1 Flight . | . . . . Utility 17 | 2 2 4 9 Device 6 | . . . 6 Storage 6 | 2 2 1 1 Processor 1 | . . 1 . Hackware . | . . . . Protection 4 | . . 2 2 Artifact . | . . . . Weapon 28 | 2 5 14 7 Energy Gun 15 | 2 2 7 4 Energy Cannon . | . . . . Ballistic Gun 12 | . 3 7 2 Ballistic Cannon . | . . . . Launcher 1 | . . . 1 Special Weapon . | . . . . Impact Weapon . | . . . . Slashing Weapon . | . . . . Piercing Weapon . | . . . . Special Melee Weapon . | . . . . Unidentified Prototypes 2 | . . 1 1 Corrupted Parts 3 | . . 3 . System Corruption 8 | . . 8 . Parts Lost 42 | . 1 13 28 Power 5 | . . 1 4 Propulsion 20 | . 1 8 11 Utility 5 | . . . 5 Weapon 12 | . . 4 8 Highest Loss Streak 11 | . 1 6 11 To Critical Strikes . | . . . . Average Slot Usage (%) 90 | . 99 90 77 Engine 10 | . 14 9 7 Treads 2 | . . 3 . Leg 23 | . 23 22 25 Wheel 3 | . 4 4 . Hover 4 | . . 7 . Device 2 | . . . 11 Storage 17 | . 28 15 7 Processor 3 | . . 4 5 Protection 1 | . . 1 3 Energy Gun 10 | . 19 10 1 Ballistic Gun 9 | . 8 10 9 Naked Turns . | . . . . Heaviest Build 44 | 12 31 36 44 Greatest Support 83 | 20 20 83 40 Greatest Overweight (x) 12 | . 1 8 12 Average Overweight (x) . | . . . . Largest Inventory Capacity 15 | 8 15 15 15 Average Capacity 13 | 7 11 15 13 Most Carried 15 | 5 15 15 15 Average Carried 12 | 2 9 14 10 Final Capacity 15 | 8 15 15 15 Final Carried 15 | 5 15 15 5 Class Distribution -------------------- 58% | Scavenger-Mutant 41% | Mutant Dominant Class ---------------- Scavenger-Mutant | -10/Materials Scavenger-Mutant | -9/Materials Scavenger-Mutant | -8/Materials Resources | -11 -10 -9 -8 ----------- Run | Yrd Mat Mat Mat Matter Collected 1640 | 286 245 404 705 Remotely 308 | . . . 308 Salvage Created 2680 | 77 378 1341 884 Parts 158 | 4 34 77 43 Haulers Intercepted 2 | . . 1 1 Recyclers Shooed 11 | . 2 6 3 Parts Field Recycled . | . . . . Retrieved Matter . | . . . . Parts Self-Destructed . | . . . . Prevented . | . . . . Kills | -11 -10 -9 -8 ------- Run | Yrd Mat Mat Mat Combat Hostiles Destroyed 55 | . 12 24 19 Guns 44 | . 12 23 9 AOE 10 | . . . 10 Classes Destroyed 11 | 2 2 3 4 Worker 8 | 1 2 1 4 Builder 1 | . . . 1 Hauler 2 | . . 1 1 Recycler 9 | 1 1 4 3 Mechanic 1 | . . . 1 Watcher 1 | . . . 1 Swarmer 20 | . 9 6 5 Grunt 26 | . 3 11 12 Brawler 2 | . . 1 1 Sentry 6 | . . 6 . Hunter 1 | . . . 1 Best Kill Streak 12 | 2 7 6 12 Combat Bots Only 7 | . 7 5 7 Max Kills in Single Turn 4 | 1 2 1 4 Gunslinging 1 | . 1 . . Exploded 2 | . . . 2 Melee . | . . . . Uniques/NPCs Destroyed . | . . . . Combat | -11 -10 -9 -8 -------- Run | Yrd Mat Mat Mat Hostile Shots Fired 538 | . 67 201 270 Missed 120 | . 12 54 54 Damage Taken 5011 | . 471 1829 2711 Core 1013 | . 129 321 563 Absorbed by Shields 204 | . . . 204 Redirected to Shielding 2 | . . . 2 Regen/Repaired (Parts) 104 | . . 104 . Core Remaining (%) 55 | 100 48 19 . Volleys Fired 241 | 9 39 120 73 Largest 2 | 2 2 2 2 Hottest 106 | 80 60 85 106 Shots Fired 413 | 18 78 200 117 Gun 396 | 18 78 200 100 Cannon . | . . . . Launcher 17 | . . . 17 Special . | . . . . Kinetic 195 | . 66 59 70 Thermal 133 | 18 12 79 24 Explosive 17 | . . . 17 Electromagnetic 68 | . . 62 6 Robot Hit Streak 26 | 4 7 26 13 Robot Miss Streak 8 | 4 3 8 5 Penetration Max . | . . . . Secondary Targets 4 | . 2 2 . Max Gunslinging Chain 1 | . 1 1 . Shots Hit Robots 270 | 10 52 138 70 Core Hits 144 | 3 28 53 60 Critical Kills . | . . . . Critical Parts Destroyed 2 | . . 1 1 Critical Strikes 2 | . . 1 1 Destroy 2 | . . 1 1 Melee Attacks . | . . . . Impact . | . . . . Slashing . | . . . . Piercing . | . . . . Sneak Attacks . | . . . . Combat Hostiles . | . . . . Follow-up Attacks . | . . . . Damage Inflicted 5223 | 120 482 1753 2868 Guns 3331 | 120 482 1720 1009 Cannons . | . . . . Explosions 1892 | . . 33 1859 Melee . | . . . . Ramming . | . . . . Kinetic 1578 | . 395 487 696 Thermal 1545 | 120 87 573 765 Explosive 1346 | . . . 1346 Electromagnetic 754 | . . 693 61 Impact . | . . . . Slashing . | . . . . Piercing . | . . . . Highest Corruption 8 | . . 8 7 Average Corruption 6 | . . 7 6 Corruption Purged . | . . . . Corruption Blocked . | . . . . Effects 52 | . . 44 8 Message Errors 16 | . . 14 2 Matter Fused 9 | . . 8 1 Heat Flow Errors 7 | . . 4 3 Energy Discharges 10 | . . 10 . Data Loss (minor) 5 | . . 4 1 Data Loss (major) 1 | . . . 1 Misfires 2 | . . 2 . Alerts 1 | . . 1 . Weapon Failures 1 | . . 1 . Overload Shots . | . . . . Overflow Damage 155 | . . 8 147 Projectiles . | . . . . Explosions 155 | . . 8 147 Melee . | . . . . Knockbacks . | . . . . Impact . | . . . . Kinetic . | . . . . Secondary . | . . . . Self-Inflicted Damage 177 | . . 27 150 Shots 5 | . . 1 4 Rammed . | . . . . Targets Rammed . | . . . . Kicked . | . . . . Crushed . | . . . . Highest Temperature 283 | 54 90 275 283 Average Temperature 79 | 22 36 67 125 Received Heat Transfer 1403 | . 60 606 737 Effects 4 | . . 3 1 Energy Bleed 1 | . . 1 . Interference 3 | . . 2 1 Siege Activations . | . . . . Robots Corrupted 1 | . . 1 . Combat Hostiles 1 | . . 1 . Parts Fried 4 | . . 3 1 Impact Corruptions . | . . . . Robots Melted . | . . . . Combat Hostiles . | . . . . Parts Melted 1 | . . 1 . Heat Transferred 2729 | 275 200 1275 979 Parts Sabotaged . | . . . . Parts Stolen . | . . . . Parts Stripped . | . . . . Power Chain Reactions 1 | . . 1 . Alert | -11 -10 -9 -8 ------- Run | Yrd Mat Mat Mat Peak Influence 392 | 10 321 391 392 Initial 129 | . 6 50 129 Average 215 | 2 159 256 231 Maximum Alert Level 1 | . 1 1 1 Low Security (%) 46 | 100 73 30 46 Level 1 53 | . 26 69 53 Level 2 . | . . . . Level 3 . | . . . . Level 4 . | . . . . Level 5 . | . . . . High Security . | . . . . Max Security . | . . . . Squads Dispatched 10 | . 1 3 6 Investigation 1 | . . 1 . Extermination . | . . . . Reinforcement 6 | . 1 2 3 Assault . | . . . . Garrison 3 | . . . 3 Intercept . | . . . . Searches Triggered . | . . . . Construction Impeded 2 | . . . 2 Haulers Reinforced . | . . . . Active Scanning Responses . | . . . . Cargo Convoy Interrupts . | . . . . Stealth | -11 -10 -9 -8 --------- Run | Yrd Mat Mat Mat Distress Signals 7 | . 1 3 3 Communications Jammed . | . . . . Distress Signals . | . . . . Times Spotted 86 | . 18 36 32 Peak Tracking Total 8 | . 8 5 7 Tactical Retreats 5 | . . 4 1 Traps | -11 -10 -9 -8 ------- Run | Yrd Mat Mat Mat Traps Triggered 2 | . 1 1 . Indirectly . | . . . . Trap Hack Attempts . | . . . . Triggered . | . . . . Disarmed . | . . . . Reprogrammed . | . . . . Reused . | . . . . Traps Extracted . | . . . . Installed . | . . . . Triggered . | . . . . Machines | -11 -10 -9 -8 ---------- Run | Yrd Mat Mat Mat Machines Disabled 5 | . . 1 4 Max in Single Turn 4 | . . 1 4 Machines Repaired . | . . . . Machines Dismantled . | . . . . Machines Sabotaged . | . . . . Overloaded Fab Kills . | . . . . Hacking | -11 -10 -9 -8 --------- Run | Yrd Mat Mat Mat Machines Accessed 4 | . 2 2 . Terminals 3 | . 2 1 . Fabricators . | . . . . Repair Stations 1 | . . 1 . Recycling Units . | . . . . Scanalyzers . | . . . . Garrison Access . | . . . . Total Hacks 6 | . 2 4 . Successful 5 | . 2 3 . Failed 1 | . . 1 . Catastrophic . | . . . . Database Lockouts . | . . . . Manual . | . . . . Terminals 4 | . 2 2 . Fabricators . | . . . . Repair Stations 2 | . . 2 . Recycling Units . | . . . . Scanalyzers . | . . . . Garrison Access . | . . . . Terminal Hacks 3 | . 2 1 . Robot Analysis 1 | . 1 . . Scanalyzer Index 1 | . 1 . . Hauler Manifests 1 | . . 1 . Fabricator Hacks . | . . . . Repair Station Hacks 2 | . . 2 . Scan Component 1 | . . 1 . Repair 1 | . . 1 . Recycling Unit Hacks . | . . . . Scanalyzer . | . . . . Garrison Access Hacks . | . . . . Unauthorized Hacks . | . . . . Terminals . | . . . . Fabricators . | . . . . Repair Stations . | . . . . Recycling Units . | . . . . Scanalyzers . | . . . . Garrison Access . | . . . . Data Cores Recovered . | . . . . Used . | . . . . Hacking Detections 1 | . . 1 . Full Trace Events . | . . . . Feedback Events . | . . . . Feedback Blocked . | . . . . Robot Schematics Acquired . | . . . . Robots Built . | . . . . Authchips . | . . . . Time . | . . . . Total Robot Build Rating . | . . . . Part Schematics Acquired . | . . . . Parts Built . | . . . . Authchips . | . . . . Time . | . . . . Total Part Build Rating . | . . . . Parts Repaired 1 | . . 1 . Time 32 | . . 32 . Parts Recycled . | . . . . Recycled Matter . | . . . . Retrieved Matter . | . . . . Retrieved Components . | . . . . Parts Scanalyzed . | . . . . Part Schematics Acquired . | . . . . Parts Damaged . | . . . . Bothacking | -11 -10 -9 -8 ------------ Run | Yrd Mat Mat Mat Used RIF Installer . | . . . . Robots Hacked . | . . . . Non-combat . | . . . . Combat . | . . . . Robot Hacks Applied . | . . . . Relay Couplers Released . | . . . . Fabnet Peak Effective % . | . . . . Robots Rewired . | . . . . Allies Hacked . | . . . . Hacks Repelled . | . . . . Allies | -11 -10 -9 -8 -------- Run | Yrd Mat Mat Mat Total Allies . | . . . . Largest Group . | . . . . Highest-Rated Group . | . . . . Highest-Rated Ally . | . . . . Total Orders . | . . . . Ally Attacks . | . . . . Total Damage . | . . . . Kills . | . . . . Allies Corrupted . | . . . . Allies Melted . | . . . . Intel | -11 -10 -9 -8 ------- Run | Yrd Mat Mat Mat Robot Analysis Total 1 | . 1 . . Derelict Logs Recovered . | . . . . Drone Launches . | . . . . Drone Recoveries . | . . . . Exploration | -11 -10 -9 -8 ------------- Run | Yrd Mat Mat Mat Turns Passed 3383 | 202 755 1814 612 Spaces Moved 1355 | 136 410 556 253 Core 26 | 4 . 13 9 Treads 83 | . . 83 . Legs 1015 | 132 378 267 238 Wheels 170 | . 32 137 1 Hover 61 | . . 56 5 Flight . | . . . . Fastest Speed 48 | 50 80 48 50 Average Speed 136 | 117 145 130 144 Slowest Speed 650 | 120 190 450 650 Overloaded Moves . | . . . . Propulsion Burnouts . | . . . . Robots Hopped . | . . . . Cave-ins Triggered . | . . . . Exploration Rate (%) 32 | 5 65 37 22 Regions Visited 3 Branch Regions . Pre-discovered Areas . | . . . . Known Exits Taken . | . . . . Unknown Exits Taken 3 | 1 1 1 . Scrap Searched . | . . . . Spaces Dug . | . . . . Terrain Destroyed 89 | . . 6 83 Melee . | . . . . Projectile . | . . . . AOE 89 | . . 6 83 Terrain Rammed . | . . . . Walls Destroyed . | . . . . Machines Disabled . | . . . . Actions | -11 -10 -9 -8 --------- Run | Yrd Mat Mat Mat Total 2528 | 156 514 1466 392 Wait 716 | . 14 687 15 Move 1352 | 135 409 555 253 Hop . | . . . . Pick Up 44 | 5 16 16 7 Fast Attach 59 | 7 7 27 18 Attach 18 | . 3 7 8 Detach 7 | . 2 3 2 Swap 25 | . 7 13 5 Drop 66 | . 17 38 11 Fire 241 | 9 39 120 73 Melee . | . . . . Ram . | . . . . Kick . | . . . . Crush . | . . . . Escape Stasis . | . . . . Rewire . | . . . . Trap . | . . . . Miscellaneous . | . . . . Route ------- -11/Scrapyard -10/Materials (discovered 3 exits: *Mat x2 / [*Min]) -9/Materials -8/Materials History --------- Turn | Location | Event 5 | -11/Scrapyard | Discovered new exit (range 14) 203 | -11/Scrapyard | Entered Materials 300 | -10/Materials | Build established: Mutant 334 | -10/Materials | Destroyed 7 combat bots 487 | -10/Materials | Core integrity fell below 50% 518 | -10/Materials | Discovered new exit (range 8) 612 | -10/Materials | Build established: Scavenger-Mutant 621 | -10/Materials | Discovered new exit (range 9) 895 | -10/Materials | Discovered new exit (range 16) 958 | -10/Materials | Entered another Materials area 958 | -9/Materials | Evolved 2 slots: Propulsion x2 1510 | -9/Materials | Lost 3 parts (2n1w) 1569 | -9/Materials | Core integrity fell below 50% 1611 | -9/Materials | Lost 6 parts (1p3n2w) 1783 | -9/Materials | Lost 3 parts (2n1w) 2272 | -9/Materials | Build established: Mutant 2289 | -9/Materials | Core integrity fell below 20% 2579 | -9/Materials | Repaired Hvy. Assault Rifle 2600 | -9/Materials | Build established: Scavenger-Mutant 2754 | -9/Materials | Discovered new exit (range 4) 2772 | -9/Materials | Entered another Materials area 2772 | -8/Materials | Evolved 2 slots: Utility x2 3069 | -8/Materials | Garrison activated, responded to threat 3125 | -8/Materials | Lost 9 parts (1p4n2u2w) 3159 | -8/Materials | Core integrity fell below 50% 3182 | -8/Materials | Core integrity fell below 20% 3209 | -8/Materials | Lost 11 parts (2p3n1u5w) 3315 | -8/Materials | Destroyed 7 combat bots 3384 | -8/Materials | Destroyed by G-47 Trooper with Particle Gun Last Messages --------------- local area. 03343_ Rocket Launcher destroyed. 03344_ U-05 Engineer builds a Wall. 03346_ Imp. Terrain Scanner destroyed. 03346_ K-01 Serf cleans the Pressure Siphon. 03349_ U-05 Engineer lays Concrete. 03351_ Acquired Prototype Energy Gun. 03351_ Identified Hvy. Particle Gun. 03351_ U-05 Engineer lays Concrete. 03352_ K-01 Serf cleans the Pressure Siphon. 03353_ System corrupted: Heat flow error (+189). 03353_ Processing Tank disabled. 03357_ W-25 Informer sends out distress signal. 03357_ Aluminum Leg destroyed. 03357_ Carbon-fiber Leg destroyed. 03362_ Acquired 119 matter. 03362_ K-01 Serf cleans the Pressure Siphon. 03369_ System corrupted: Substantial component data lost. 03373_ Aluminum Leg destroyed. 03382_ Rnf. Ion Engine destroyed. Map ----- +----------------------------------------------------+ | ?????????????????????????????????????????????????? | | ?????????????????????????????????????????????????? | | ?????????????????????????????????????????????????? | | ?????????????????????????????????????????????????? | | ?????????????????????????????????????????????????? | | ?????????????????????????????????????????????????? | | ?????????????????????????????????????????????????? | | ?????????????????????????????????????????????????? | | ?????????????????????????????????????????????????? | | ?????????????????????????????????????????????????? | | ?????????????????????????????????????????????????? | | ????????????????????????"????????????????????????? | | ???????????????????????? ????????????????????????? | | ???????????????????????? ????????????????????????? | | ???????????????????????? ????????????????????????? | | ????????????????????????+####?????????????????#??? | | ???????????????????????? #?#??????????????????? | | ???????????????????????? ##???????????????#???? | | ???????????????????????? #????????????????????? | | ????????????????????????# #????????????????????? | | ????????????????????????# #??????? ????????????? | | ????????????????????????# #????????????????????? | | ????????????????????????# ##########+####?????#? | | ????????????????????????# ^w #??????? | | ????????????????????????+ ####???? | | ????????????????????????#@ a "" ###?? | | ????????????????????????# """"" k"""" G" ### | | ????????????????????????# """"" """" [ "" | | ????????????????????????#gg"""" """" %## | | ????????????????????????# | | ????????????????????????# g Y | | ????????????????????????# | | ????????????????????????# | | ????????????????????????# ############+##### | | ????????????????????????# #??????? % | | ????????????????????????# # ?????? # | | ????????????????????????# +??????# # | | ????????????????????????# #??????# ### | | ???????????????????????? #??????# ### | | ???????????????????????## #??????# + | | ????????????????????????# #??????# ##### | | ????????????????????????# #??????# #???# | | ????????????????????????# #?#????#######+###???# | | ????????????????????????# #??????????????#?????# | | ????????????????????????# #????????????????????# | | ????????????????????????? ???????????????? ????# | | ????????????????????????????????????????????????? | | ?????????????????????????????????????????? ?????## | | ???????????????????????????????????????????????#?# | | ?????????????????????????????????????????????????# | +----------------------------------------------------+ Best States ------------- Heat Dissipation 45 Energy Generation 14 Energy Capacity 500 Matter Stores 400 Matter Capacity 400 Sight Range 16 Terrain Scan Range 16 Terrain Scan Density 10 Armor Coverage 150 Power Shielding 33 Evasion (%) 55 Targeting Accuracy 8 Recoil Reduction 4 Item Schematics ----------------- None Robot Schematics ------------------ None Fabricated ------------ Nothing Alien Tech Used ----------------- None Achievements -------------- None Challenges ------------ None Game ------ Seed QuantumWarpLeg Manual? 0 Play Time 00:27:55 Cumulative 42.4 hours Start 2024.04.03 @ 02:49:26 End 2024.04.03 @ 03:17:25 Sessions 1 Manual Loads 0 Difficulty Rogue Special Mode None Game No. 98 Rogue 98 Adventurer 0 Explorer 0 Win Type - Total 0 Types 0/0/0/0/0/0/0/0/0 Lore% 20 Gallery% 33 Achievement% 26 Wizard Run 0 Options --------- Layout 0 ASCII 0 Keyboard 1 Movement Numpad Keybinds 0 Fullscreen 1 Font 18/X11 Map View 76x50 Zoom Use 0% Tactical HUD 1 Map Filters NONE Filters NONE Steam 1 RUN: bd545bec-f8e5-4c6c-9f7d-368347e1a336